[Event "Titled Tuesday Blitz April 26 Late 2022"]
[White "Skliarov, Viktor"]
[Black "Sarana, Alexey"]
[WhiteFideId "14106736"]
[BlackFideId "24133795"]
[WhiteElo "2229"]
[BlackElo "2666"]
[Result "0-1"]
[Round "01"]
[TimeControl "180+1"]
[Date "2022.04.26"]
[WhiteClock "0:00:02"]
[BlackClock "0:00:29"]

1. e4 {[%clk 0:03:00]}  c5 {[%clk 0:03:00]} 2. Nf3 {[%clk 0:03:00]}  d6 {[%clk 0:03:00]} 3. d4 {[%clk 0:03:00]}  Nf6 {[%clk 0:03:01]} 4. Nc3 {[%clk 0:02:59]}  cxd4 {[%clk 0:03:01]} 5. Qxd4 {[%clk 0:02:59]}  Bd7 {[%clk 0:02:55]} 6. e5 {[%clk 0:02:53]}  Nc6 {[%clk 0:02:54]} 7. Qf4 {[%clk 0:02:54]}  dxe5 {[%clk 0:02:51]} 8. Nxe5 {[%clk 0:02:53]}  Nxe5 {[%clk 0:02:51]} 9. Qxe5 {[%clk 0:02:54]}  e6 {[%clk 0:02:52]} 10. Nb5 {[%clk 0:02:48]}  Nd5 {[%clk 0:02:45]} 11. Nd6+ {[%clk 0:02:35]}  Bxd6 {[%clk 0:02:43]} 12. Qxd6 {[%clk 0:02:36]}  Bc6 {[%clk 0:02:37]} 13. Qa3 {[%clk 0:02:22]}  Qf6 {[%clk 0:02:29]} 14. Bd3 {[%clk 0:02:03]}  Qe5+ {[%clk 0:02:26]} 15. Kf1 {[%clk 0:01:55]}  h5 {[%clk 0:02:18]} 16. Bd2 {[%clk 0:01:32]}  Nf4 {[%clk 0:02:14]} 17. Bxf4 {[%clk 0:01:26]}  Qxf4 {[%clk 0:02:15]} 18. Re1 {[%clk 0:01:22]}  h4 {[%clk 0:02:14]} 19. Be4 {[%clk 0:00:43]}  h3 {[%clk 0:01:48]} 20. Bxc6+ {[%clk 0:00:41]}  bxc6 {[%clk 0:01:49]} 21. gxh3 {[%clk 0:00:29]}  Qf5 {[%clk 0:01:44]} 22. Qd3 {[%clk 0:00:26]}  Qxd3+ {[%clk 0:01:41]} 23. cxd3 {[%clk 0:00:27]}  Rxh3 {[%clk 0:01:41]} 24. Re3 {[%clk 0:00:26]}  Rh5 {[%clk 0:01:40]} 25. Ke2 {[%clk 0:00:26]}  Rb8 {[%clk 0:01:38]} 26. b3 {[%clk 0:00:26]}  Ra5 {[%clk 0:01:38]} 27. Ra1 {[%clk 0:00:17]}  Rxb3 {[%clk 0:01:38]} 28. axb3 {[%clk 0:00:18]}  Rxa1 {[%clk 0:01:38]} 29. Rg3 {[%clk 0:00:18]}  g6 {[%clk 0:01:37]} 30. Rg4 {[%clk 0:00:17]}  Ra3 {[%clk 0:01:37]} 31. Rb4 {[%clk 0:00:17]}  Ke7 {[%clk 0:01:33]} 32. Rb7+ {[%clk 0:00:17]}  Kf6 {[%clk 0:01:34]} 33. Rc7 {[%clk 0:00:17]}  a5 {[%clk 0:01:31]} 34. Rxc6 {[%clk 0:00:17]}  Rxb3 {[%clk 0:01:31]} 35. Ra6 {[%clk 0:00:18]}  Rb5 {[%clk 0:01:31]} 36. Ke3 {[%clk 0:00:18]}  g5 {[%clk 0:01:31]} 37. Ra7 {[%clk 0:00:18]}  Kg6 {[%clk 0:01:30]} 38. h3 {[%clk 0:00:18]}  f5 {[%clk 0:01:29]} 39. Kf3 {[%clk 0:00:18]}  Kf6 {[%clk 0:01:28]} 40. Ke3 {[%clk 0:00:19]}  Rd5 {[%clk 0:01:25]} 41. Ra6 {[%clk 0:00:18]}  Ke5 {[%clk 0:01:25]} 42. Rb6 {[%clk 0:00:17]}  f4+ {[%clk 0:01:21]} 43. Ke2 {[%clk 0:00:17]}  Kf5 {[%clk 0:01:20]} 44. Ra6 {[%clk 0:00:17]}  Rb5 {[%clk 0:01:20]} 45. Kf3 {[%clk 0:00:17]}  e5 {[%clk 0:01:17]} 46. Ra8 {[%clk 0:00:13]}  Rd5 {[%clk 0:01:17]} 47. Ke2 {[%clk 0:00:12]}  Kg6 {[%clk 0:01:13]} 48. Rg8+ {[%clk 0:00:12]}  Kf6 {[%clk 0:01:12]} 49. Ra8 {[%clk 0:00:12]}  Rb5 {[%clk 0:01:12]} 50. Kf3 {[%clk 0:00:12]}  Rb3 {[%clk 0:01:11]} 51. Rxa5 {[%clk 0:00:12]}  Kf5 {[%clk 0:00:57]} 52. Rd5 {[%clk 0:00:09]}  Ra3 {[%clk 0:00:56]} 53. Kg2 {[%clk 0:00:07]}  Ra4 {[%clk 0:00:55]} 54. Rd8 {[%clk 0:00:07]}  Ke6 {[%clk 0:00:52]} 55. Re8+ {[%clk 0:00:07]}  Kf6 {[%clk 0:00:53]} 56. Rf8+ {[%clk 0:00:07]}  Kg6 {[%clk 0:00:53]} 57. Rg8+ {[%clk 0:00:07]}  Kh6 {[%clk 0:00:54]} 58. Rh8+ {[%clk 0:00:07]}  Kg7 {[%clk 0:00:54]} 59. Re8 {[%clk 0:00:07]}  Ra5 {[%clk 0:00:51]} 60. Kf3 {[%clk 0:00:07]}  Kf7 {[%clk 0:00:52]} 61. Rd8 {[%clk 0:00:06]}  Ra2 {[%clk 0:00:51]} 62. Kg2 {[%clk 0:00:04]}  Rd2 {[%clk 0:00:49]} 63. Kf3 {[%clk 0:00:04]}  Ke7 {[%clk 0:00:48]} 64. Rd5 {[%clk 0:00:04]}  Ke6 {[%clk 0:00:48]} 65. Rd8 {[%clk 0:00:04]}  Kf6 {[%clk 0:00:47]} 66. Rf8+ {[%clk 0:00:05]}  Ke7 {[%clk 0:00:44]} 67. Rf5 {[%clk 0:00:05]}  Ke6 {[%clk 0:00:44]} 68. Rxg5 {[%clk 0:00:05]}  Rxd3+ {[%clk 0:00:45]} 69. Kg2 {[%clk 0:00:05]}  e4 {[%clk 0:00:44]} 70. h4 {[%clk 0:00:05]}  Rd2 {[%clk 0:00:44]} 71. Kg1 {[%clk 0:00:05]}  Rd1+ {[%clk 0:00:43]} 72. Kg2 {[%clk 0:00:05]}  Rd2 {[%clk 0:00:44]} 73. Kg1 {[%clk 0:00:05]}  Kf6 {[%clk 0:00:44]} 74. Ra5 {[%clk 0:00:05]}  Rd8 {[%clk 0:00:40]} 75. h5 {[%clk 0:00:05]}  Rg8+ {[%clk 0:00:40]} 76. Kf1 {[%clk 0:00:05]}  Rh8 {[%clk 0:00:33]} 77. Ke2 {[%clk 0:00:05]}  Rb8 {[%clk 0:00:33]} 78. Kf1 {[%clk 0:00:05]}  Rb2 {[%clk 0:00:30]} 79. Kg2 {[%clk 0:00:05]}  e3 {[%clk 0:00:30]} 80. h6 {[%clk 0:00:01]}  Rxf2+ {[%clk 0:00:31]} 81. Kg1 {[%clk 0:00:02]}  Kg6 {[%clk 0:00:31]} 82. Ra6+ {[%clk 0:00:02]}  Kh7 {[%clk 0:00:31]} 83. Rf6 {[%clk 0:00:03]}  Rf3 {[%clk 0:00:31]} 84. Kg2 {[%clk 0:00:02]}  e2 {[%clk 0:00:27]} 85. Re6 {[%clk 0:00:02]}  Re3 {[%clk 0:00:28]} 86. Rxe3 {[%clk 0:00:02]}  fxe3 {[%clk 0:00:29]} 0-1


[Site "https://www.chess.com"]

[Event "Titled Tuesday Blitz April 26 Late 2022"]
[White "Song, Guannan Terry"]
[Black "Horcajuelo Rocamora, Martin"]
[WhiteFideId "2614189"]
[BlackFideId "24573027"]
[WhiteElo "2115"]
[BlackElo "1822"]
[Result "1-0"]
[Round "01"]
[TimeControl "180+1"]
[Date "2022.04.26"]
[WhiteClock "0:00:44"]
[BlackClock "0:00:47"]

1. d4 {[%clk 0:03:00]}  Nf6 {[%clk 0:02:56]} 2. Bg5 {[%clk 0:03:01]}  c5 {[%clk 0:02:45]} 3. d5 {[%clk 0:03:00]}  Qb6 {[%clk 0:02:43]} 4. Nc3 {[%clk 0:02:59]}  Qxb2 {[%clk 0:02:42]} 5. Bd2 {[%clk 0:02:59]}  Qb6 {[%clk 0:02:41]} 6. e4 {[%clk 0:02:58]}  d6 {[%clk 0:02:38]} 7. f4 {[%clk 0:02:57]}  Qd8 {[%clk 0:02:36]} 8. Nf3 {[%clk 0:02:57]}  g6 {[%clk 0:02:35]} 9. Bc4 {[%clk 0:02:51]}  Bg7 {[%clk 0:02:34]} 10. O-O {[%clk 0:02:43]}  O-O {[%clk 0:02:32]} 11. Rb1 {[%clk 0:02:37]}  a6 {[%clk 0:02:31]} 12. a4 {[%clk 0:02:34]}  Bg4 {[%clk 0:02:22]} 13. Rxb7 {[%clk 0:02:29]}  Nbd7 {[%clk 0:02:20]} 14. h3 {[%clk 0:02:09]}  Bxf3 {[%clk 0:02:17]} 15. Qxf3 {[%clk 0:02:10]}  Nb6 {[%clk 0:02:17]} 16. Qe2 {[%clk 0:02:05]}  Nfd7 {[%clk 0:02:15]} 17. a5 {[%clk 0:02:00]}  Nxc4 {[%clk 0:02:14]} 18. Qxc4 {[%clk 0:02:00]}  Qxa5 {[%clk 0:02:13]} 19. Rxd7 {[%clk 0:01:58]}  Rfe8 {[%clk 0:02:08]} 20. f5 {[%clk 0:01:54]}  Rab8 {[%clk 0:01:55]} 21. fxg6 {[%clk 0:01:48]}  hxg6 {[%clk 0:01:55]} 22. Kh1 {[%clk 0:01:32]}  Rb4 {[%clk 0:01:48]} 23. Qd3 {[%clk 0:01:25]}  Rd4 {[%clk 0:01:48]} 24. Qf3 {[%clk 0:01:25]}  f6 {[%clk 0:01:42]} 25. Be1 {[%clk 0:01:21]}  Qb6 {[%clk 0:01:37]} 26. Ne2 {[%clk 0:01:17]}  Ra4 {[%clk 0:01:36]} 27. Nf4 {[%clk 0:01:16]}  Qb5 {[%clk 0:01:29]} 28. Rc7 {[%clk 0:01:03]}  Rxe4 {[%clk 0:01:28]} 29. Qxe4 {[%clk 0:00:53]}  Qxf1+ {[%clk 0:01:27]} 30. Kh2 {[%clk 0:00:53]}  f5 {[%clk 0:01:25]} 31. Qe6+ {[%clk 0:00:53]}  Kh8 {[%clk 0:01:25]} 32. Nxg6+ {[%clk 0:00:52]}  Kh7 {[%clk 0:01:25]} 33. Bg3 {[%clk 0:00:48]}  a5 {[%clk 0:00:50]} 34. Nxe7 {[%clk 0:00:45]}  f4 {[%clk 0:00:48]} 35. Qg6+ {[%clk 0:00:44]}  Kh8 {[%clk 0:00:47]} 36. Qxe8+ {[%clk 0:00:44]} 1-0


[Site "https://www.chess.com"]

[Event "Titled Tuesday Blitz April 26 Late 2022"]
[White "Song, Michael"]
[Black "Svane, Rasmus"]
[WhiteFideId "2613190"]
[BlackFideId "4657101"]
[WhiteElo "2274"]
[BlackElo "2645"]
[Result "0-1"]
[Round "01"]
[TimeControl "180+1"]
[Date "2022.04.26"]
[WhiteClock "0:00:09"]
[BlackClock "0:00:06"]

1. e4 {[%clk 0:02:54]}  c6 {[%clk 0:02:59]} 2. Nc3 {[%clk 0:02:54]}  d5 {[%clk 0:03:00]} 3. Nf3 {[%clk 0:02:54]}  dxe4 {[%clk 0:03:01]} 4. Nxe4 {[%clk 0:02:54]}  Nf6 {[%clk 0:03:01]} 5. Nxf6+ {[%clk 0:02:54]}  exf6 {[%clk 0:03:02]} 6. d4 {[%clk 0:02:54]}  Bd6 {[%clk 0:03:03]} 7. g3 {[%clk 0:02:52]}  O-O {[%clk 0:03:04]} 8. Bg2 {[%clk 0:02:52]}  Re8+ {[%clk 0:03:05]} 9. Be3 {[%clk 0:02:52]}  Be6 {[%clk 0:02:56]} 10. O-O {[%clk 0:02:51]}  Nd7 {[%clk 0:02:56]} 11. Re1 {[%clk 0:02:51]}  h6 {[%clk 0:02:45]} 12. Qd2 {[%clk 0:02:42]}  Nb6 {[%clk 0:02:43]} 13. b3 {[%clk 0:02:38]}  Nd5 {[%clk 0:02:43]} 14. a3 {[%clk 0:02:26]}  Qd7 {[%clk 0:02:40]} 15. c4 {[%clk 0:02:24]}  Nxe3 {[%clk 0:02:40]} 16. Rxe3 {[%clk 0:02:23]}  Rad8 {[%clk 0:02:39]} 17. Rd1 {[%clk 0:01:53]}  Qc7 {[%clk 0:02:26]} 18. Qc1 {[%clk 0:01:45]}  f5 {[%clk 0:02:25]} 19. Red3 {[%clk 0:01:14]}  Be7 {[%clk 0:02:09]} 20. b4 {[%clk 0:01:06]}  Bf6 {[%clk 0:02:05]} 21. d5 {[%clk 0:00:46]}  cxd5 {[%clk 0:02:04]} 22. c5 {[%clk 0:00:47]}  b6 {[%clk 0:01:13]} 23. c6 {[%clk 0:00:41]}  b5 {[%clk 0:01:07]} 24. Nd4 {[%clk 0:00:39]}  a6 {[%clk 0:01:00]} 25. Nb3 {[%clk 0:00:19]}  Rd6 {[%clk 0:00:57]} 26. Bxd5 {[%clk 0:00:17]}  Bxd5 {[%clk 0:00:53]} 27. Rxd5 {[%clk 0:00:18]}  Rxc6 {[%clk 0:00:54]} 28. Nc5 {[%clk 0:00:18]}  Qc8 {[%clk 0:00:48]} 29. Rd7 {[%clk 0:00:17]}  a5 {[%clk 0:00:37]} 30. Qf4 {[%clk 0:00:17]}  axb4 {[%clk 0:00:37]} 31. axb4 {[%clk 0:00:17]}  Rd8 {[%clk 0:00:23]} 32. Rxd8+ {[%clk 0:00:17]}  Bxd8 {[%clk 0:00:23]} 33. h4 {[%clk 0:00:15]}  Bf6 {[%clk 0:00:22]} 34. Rd6 {[%clk 0:00:14]}  Rxd6 {[%clk 0:00:21]} 35. Qxd6 {[%clk 0:00:15]}  h5 {[%clk 0:00:19]} 36. Qd5 {[%clk 0:00:15]}  g6 {[%clk 0:00:18]} 37. Nd3 {[%clk 0:00:15]}  Qc4 {[%clk 0:00:15]} 38. Qxc4 {[%clk 0:00:11]}  bxc4 {[%clk 0:00:16]} 39. Ne1 {[%clk 0:00:11]}  Kf8 {[%clk 0:00:15]} 40. Kg2 {[%clk 0:00:11]}  Ke7 {[%clk 0:00:15]} 41. Kf3 {[%clk 0:00:12]}  Kd6 {[%clk 0:00:16]} 42. Nc2 {[%clk 0:00:12]}  Kc6 {[%clk 0:00:14]} 43. Ke3 {[%clk 0:00:12]}  Bc3 {[%clk 0:00:13]} 44. Na3 {[%clk 0:00:12]}  Kd5 {[%clk 0:00:12]} 45. b5 {[%clk 0:00:12]}  Bd4+ {[%clk 0:00:12]} 46. Ke2 {[%clk 0:00:12]}  Bc5 {[%clk 0:00:11]} 47. Nc2 {[%clk 0:00:11]}  f6 {[%clk 0:00:10]} 48. f3 {[%clk 0:00:12]}  g5 {[%clk 0:00:10]} 49. f4 {[%clk 0:00:05]}  g4 {[%clk 0:00:09]} 50. Ne1 {[%clk 0:00:05]}  Bg1 {[%clk 0:00:05]} 51. Nc2 {[%clk 0:00:06]}  Kc5 {[%clk 0:00:06]} 52. Kf1 {[%clk 0:00:06]}  Bh2 {[%clk 0:00:03]} 53. Kg2 {[%clk 0:00:06]}  Bxg3 {[%clk 0:00:04]} 54. Kxg3 {[%clk 0:00:05]}  Kxb5 {[%clk 0:00:05]} 55. Nd4+ {[%clk 0:00:06]}  Kb4 {[%clk 0:00:05]} 56. Nxf5 {[%clk 0:00:06]}  c3 {[%clk 0:00:06]} 57. Ne3 {[%clk 0:00:06]}  Kb3 {[%clk 0:00:06]} 58. Nxg4 {[%clk 0:00:06]}  hxg4 {[%clk 0:00:04]} 59. h5 {[%clk 0:00:06]}  c2 {[%clk 0:00:05]} 60. h6 {[%clk 0:00:07]}  c1=Q {[%clk 0:00:06]} 61. h7 {[%clk 0:00:08]}  Qg1+ {[%clk 0:00:06]} 62. Kh4 {[%clk 0:00:09]}  Qh2+ {[%clk 0:00:06]} 0-1


[Site "https://www.chess.com"]

[Event "Titled Tuesday Blitz April 26 Late 2022"]
[White "Spata, German"]
[Black "Caruana, Fabiano"]
[WhiteFideId "113026"]
[BlackFideId "2020009"]
[WhiteElo "2238"]
[BlackElo "2744"]
[Result "0-1"]
[Round "01"]
[TimeControl "180+1"]
[Date "2022.04.26"]
[WhiteClock "0:00:03"]
[BlackClock "0:00:41"]

1. Nf3 {[%clk 0:02:57]}  d6 {[%clk 0:02:55]} 2. d4 {[%clk 0:02:54]}  g6 {[%clk 0:02:54]} 3. g3 {[%clk 0:02:52]}  Bg7 {[%clk 0:02:53]} 4. Bg2 {[%clk 0:02:52]}  Nf6 {[%clk 0:02:54]} 5. b3 {[%clk 0:02:51]}  O-O {[%clk 0:02:54]} 6. Bb2 {[%clk 0:02:51]}  Bf5 {[%clk 0:02:55]} 7. O-O {[%clk 0:02:51]}  c6 {[%clk 0:02:53]} 8. c4 {[%clk 0:02:51]}  a5 {[%clk 0:02:49]} 9. Nc3 {[%clk 0:02:50]}  Ne4 {[%clk 0:02:47]} 10. e3 {[%clk 0:02:44]}  Nxc3 {[%clk 0:02:44]} 11. Bxc3 {[%clk 0:02:44]}  Be4 {[%clk 0:02:45]} 12. Ne1 {[%clk 0:02:29]}  Bxg2 {[%clk 0:02:42]} 13. Kxg2 {[%clk 0:02:30]}  Nd7 {[%clk 0:02:41]} 14. Nf3 {[%clk 0:02:30]}  b5 {[%clk 0:02:42]} 15. Qe2 {[%clk 0:02:24]}  b4 {[%clk 0:02:41]} 16. Bb2 {[%clk 0:02:23]}  a4 {[%clk 0:02:42]} 17. Qc2 {[%clk 0:02:16]}  a3 {[%clk 0:02:40]} 18. Bc1 {[%clk 0:02:16]}  c5 {[%clk 0:02:41]} 19. Bd2 {[%clk 0:02:09]}  Qc7 {[%clk 0:02:39]} 20. Rad1 {[%clk 0:02:05]}  e5 {[%clk 0:02:38]} 21. dxe5 {[%clk 0:02:02]}  dxe5 {[%clk 0:02:39]} 22. e4 {[%clk 0:02:02]}  f5 {[%clk 0:02:34]} 23. Ng5 {[%clk 0:01:52]}  Qc6 {[%clk 0:02:29]} 24. f3 {[%clk 0:01:48]}  Rad8 {[%clk 0:02:21]} 25. Bc1 {[%clk 0:01:41]}  h6 {[%clk 0:02:08]} 26. Nh3 {[%clk 0:01:40]}  fxe4 {[%clk 0:02:08]} 27. Qxe4 {[%clk 0:01:32]}  Qxe4 {[%clk 0:02:04]} 28. fxe4 {[%clk 0:01:33]}  Nf6 {[%clk 0:02:05]} 29. Rxd8 {[%clk 0:01:26]}  Rxd8 {[%clk 0:02:06]} 30. Nf2 {[%clk 0:01:24]}  Bf8 {[%clk 0:01:53]} 31. Be3 {[%clk 0:01:23]}  Kg7 {[%clk 0:01:45]} 32. Kf3 {[%clk 0:01:22]}  Be7 {[%clk 0:01:44]} 33. Ke2 {[%clk 0:01:13]}  g5 {[%clk 0:01:42]} 34. Rd1 {[%clk 0:01:09]}  Rxd1 {[%clk 0:01:39]} 35. Kxd1 {[%clk 0:01:09]}  g4 {[%clk 0:01:40]} 36. Ke2 {[%clk 0:01:03]}  Kg6 {[%clk 0:01:35]} 37. Bd2 {[%clk 0:01:02]}  h5 {[%clk 0:01:34]} 38. Be3 {[%clk 0:01:02]}  Nd7 {[%clk 0:01:28]} 39. Nd3 {[%clk 0:00:58]}  Kf6 {[%clk 0:01:28]} 40. Kf2 {[%clk 0:00:54]}  Ke6 {[%clk 0:01:28]} 41. Ke2 {[%clk 0:00:55]}  Kd6 {[%clk 0:01:28]} 42. Kf2 {[%clk 0:00:53]}  Kc6 {[%clk 0:01:25]} 43. Ke2 {[%clk 0:00:53]}  Bd6 {[%clk 0:01:25]} 44. Bg5 {[%clk 0:00:51]}  Nf8 {[%clk 0:01:24]} 45. Be3 {[%clk 0:00:40]}  Ne6 {[%clk 0:01:23]} 46. Kd2 {[%clk 0:00:40]}  Nf8 {[%clk 0:01:14]} 47. Ke2 {[%clk 0:00:40]}  Nd7 {[%clk 0:01:14]} 48. Bg5 {[%clk 0:00:37]}  Bc7 {[%clk 0:01:14]} 49. Be3 {[%clk 0:00:34]}  Bb6 {[%clk 0:01:13]} 50. Bh6 {[%clk 0:00:28]}  Bd8 {[%clk 0:01:12]} 51. Be3 {[%clk 0:00:28]}  Be7 {[%clk 0:01:04]} 52. Nf2 {[%clk 0:00:27]}  Kd6 {[%clk 0:00:58]} 53. Kd3 {[%clk 0:00:27]}  Nb8 {[%clk 0:00:55]} 54. h3 {[%clk 0:00:26]}  gxh3 {[%clk 0:00:54]} 55. Nxh3 {[%clk 0:00:27]}  Nc6 {[%clk 0:00:54]} 56. Nf2 {[%clk 0:00:24]}  Ke6 {[%clk 0:00:54]} 57. Nh3 {[%clk 0:00:21]}  Na5 {[%clk 0:00:53]} 58. Kc2 {[%clk 0:00:20]}  Nb7 {[%clk 0:00:53]} 59. Kd3 {[%clk 0:00:20]}  Nd8 {[%clk 0:00:52]} 60. Bg5 {[%clk 0:00:19]}  Bxg5 {[%clk 0:00:49]} 61. Nxg5+ {[%clk 0:00:20]}  Kf6 {[%clk 0:00:49]} 62. Nh7+ {[%clk 0:00:17]}  Kf7 {[%clk 0:00:47]} 63. Ng5+ {[%clk 0:00:16]}  Kg6 {[%clk 0:00:48]} 64. Nf3 {[%clk 0:00:15]}  Kf6 {[%clk 0:00:47]} 65. Nh4 {[%clk 0:00:14]}  Ne6 {[%clk 0:00:46]} 66. Nf5 {[%clk 0:00:14]}  Nd4 {[%clk 0:00:46]} 67. Nxd4 {[%clk 0:00:11]}  exd4 {[%clk 0:00:47]} 68. Ke2 {[%clk 0:00:11]}  Kg5 {[%clk 0:00:47]} 69. Kf3 {[%clk 0:00:11]}  Kg6 {[%clk 0:00:47]} 70. Kf4 {[%clk 0:00:10]}  Kf6 {[%clk 0:00:46]} 71. e5+ {[%clk 0:00:09]}  Ke7 {[%clk 0:00:45]} 72. Kf3 {[%clk 0:00:08]}  Kf7 {[%clk 0:00:42]} 73. Kf4 {[%clk 0:00:07]}  Kg6 {[%clk 0:00:42]} 74. Ke4 {[%clk 0:00:05]}  Kg5 {[%clk 0:00:43]} 75. e6 {[%clk 0:00:02]}  Kf6 {[%clk 0:00:40]} 76. Kd5 {[%clk 0:00:03]}  d3 {[%clk 0:00:41]} 0-1


[Site "https://www.chess.com"]

[Event "Titled Tuesday Blitz April 26 Late 2022"]
[White "Stanisz, Patryk"]
[Black "Zivkovic, Nemanja"]
[WhiteFideId "1123106"]
[BlackFideId "942154"]
[WhiteElo "1833"]
[BlackElo "2364"]
[Result "1-0"]
[Round "01"]
[TimeControl "180+1"]
[Date "2022.04.26"]
[WhiteClock "0:00:01"]
[BlackClock "0:00:14"]

1. d4 {[%clk 0:02:59]}  Nf6 {[%clk 0:02:56]} 2. c4 {[%clk 0:02:59]}  e6 {[%clk 0:02:47]} 3. Nc3 {[%clk 0:02:59]}  Bb4 {[%clk 0:02:44]} 4. Qc2 {[%clk 0:02:59]}  Nc6 {[%clk 0:02:41]} 5. Nf3 {[%clk 0:02:58]}  h6 {[%clk 0:02:29]} 6. a3 {[%clk 0:02:59]}  Bxc3+ {[%clk 0:02:27]} 7. Qxc3 {[%clk 0:03:00]}  d6 {[%clk 0:02:24]} 8. b4 {[%clk 0:02:56]}  O-O {[%clk 0:02:22]} 9. b5 {[%clk 0:02:50]}  Nb8 {[%clk 0:02:15]} 10. Bb2 {[%clk 0:02:49]}  Nbd7 {[%clk 0:02:14]} 11. e3 {[%clk 0:02:50]}  b6 {[%clk 0:02:14]} 12. Be2 {[%clk 0:02:49]}  Bb7 {[%clk 0:02:14]} 13. O-O {[%clk 0:02:49]}  Qe7 {[%clk 0:02:15]} 14. a4 {[%clk 0:02:48]}  a5 {[%clk 0:02:14]} 15. Rac1 {[%clk 0:02:44]}  Ne4 {[%clk 0:02:13]} 16. Qc2 {[%clk 0:02:44]}  f5 {[%clk 0:02:12]} 17. Nd2 {[%clk 0:02:43]}  Qg5 {[%clk 0:01:57]} 18. Nf3 {[%clk 0:02:28]}  Qg6 {[%clk 0:01:52]} 19. g3 {[%clk 0:01:59]}  Ng5 {[%clk 0:01:44]} 20. Nxg5 {[%clk 0:01:13]}  hxg5 {[%clk 0:01:35]} 21. f4 {[%clk 0:01:04]}  gxf4 {[%clk 0:01:30]} 22. exf4 {[%clk 0:01:05]}  Nf6 {[%clk 0:01:26]} 23. Bf3 {[%clk 0:00:48]}  Be4 {[%clk 0:01:20]} 24. Qe2 {[%clk 0:00:42]}  Rae8 {[%clk 0:01:16]} 25. c5 {[%clk 0:00:42]}  Bxf3 {[%clk 0:01:05]} 26. Qxf3 {[%clk 0:00:36]}  Ne4 {[%clk 0:01:05]} 27. Qg2 {[%clk 0:00:18]}  bxc5 {[%clk 0:00:39]} 28. dxc5 {[%clk 0:00:19]}  Nxc5 {[%clk 0:00:39]} 29. Qc6 {[%clk 0:00:11]}  Rc8 {[%clk 0:00:28]} 30. Rxc5 {[%clk 0:00:11]}  dxc5 {[%clk 0:00:28]} 31. Qxc5 {[%clk 0:00:11]}  Rfd8 {[%clk 0:00:29]} 32. Bc3 {[%clk 0:00:06]}  Ra8 {[%clk 0:00:23]} 33. Qxc7 {[%clk 0:00:04]}  Rdc8 {[%clk 0:00:20]} 34. Qe5 {[%clk 0:00:04]}  Qg4 {[%clk 0:00:21]} 35. Kg2 {[%clk 0:00:04]}  Kh7 {[%clk 0:00:19]} 36. Rf2 {[%clk 0:00:04]}  Rc4 {[%clk 0:00:19]} 37. h3 {[%clk 0:00:04]}  Qg6 {[%clk 0:00:17]} 38. b6 {[%clk 0:00:04]}  Rd8 {[%clk 0:00:14]} 39. b7 {[%clk 0:00:04]}  Rxc3 {[%clk 0:00:12]} 40. Qxc3 {[%clk 0:00:04]}  Qe8 {[%clk 0:00:13]} 41. Qc7 {[%clk 0:00:03]}  Rd7 {[%clk 0:00:13]} 42. Qc8 {[%clk 0:00:03]}  Rd8 {[%clk 0:00:13]} 43. Rc2 {[%clk 0:00:02]}  Qxa4 {[%clk 0:00:12]} 44. Qxd8 {[%clk 0:00:02]}  Qxc2+ {[%clk 0:00:12]} 45. Kf3 {[%clk 0:00:03]}  Qe4+ {[%clk 0:00:12]} 46. Kf2 {[%clk 0:00:03]}  Qc2+ {[%clk 0:00:13]} 47. Kf1 {[%clk 0:00:03]}  Qb1+ {[%clk 0:00:13]} 48. Kf2 {[%clk 0:00:03]}  Qxb7 {[%clk 0:00:14]} 49. Qxa5 {[%clk 0:00:02]}  Qh1 {[%clk 0:00:13]} 50. h4 {[%clk 0:00:02]}  Qh2+ {[%clk 0:00:13]} 51. Kf3 {[%clk 0:00:02]}  Qh1+ {[%clk 0:00:14]} 52. Kf2 {[%clk 0:00:03]}  Qe4 {[%clk 0:00:15]} 53. Qe5 {[%clk 0:00:02]}  Qc2+ {[%clk 0:00:14]} 54. Qe2 {[%clk 0:00:02]}  Qc4 {[%clk 0:00:14]} 55. Qxc4 {[%clk 0:00:01]} 1-0


[Site "https://www.chess.com"]

[Event "Titled Tuesday Blitz April 26 Late 2022"]
[White "Svane, Frederik"]
[Black "Szalay, Karoly"]
[WhiteFideId "12923044"]
[BlackFideId "2600544"]
[WhiteElo "2459"]
[BlackElo "2433"]
[Result "1-0"]
[Round "01"]
[TimeControl "180+1"]
[Date "2022.04.26"]
[WhiteClock "0:00:04"]
[BlackClock "0:00:01"]

1. e4 {[%clk 0:02:58]}  e5 {[%clk 0:02:59]} 2. Nf3 {[%clk 0:02:57]}  Nc6 {[%clk 0:02:57]} 3. Bb5 {[%clk 0:02:58]}  a6 {[%clk 0:02:57]} 4. Ba4 {[%clk 0:02:59]}  Nf6 {[%clk 0:02:58]} 5. O-O {[%clk 0:02:59]}  b5 {[%clk 0:02:58]} 6. Bb3 {[%clk 0:03:00]}  Bc5 {[%clk 0:02:59]} 7. Nc3 {[%clk 0:02:59]}  d6 {[%clk 0:02:59]} 8. Nd5 {[%clk 0:02:56]}  O-O {[%clk 0:02:54]} 9. d4 {[%clk 0:02:56]}  Nxd4 {[%clk 0:02:32]} 10. Nxd4 {[%clk 0:02:56]}  Bxd4 {[%clk 0:02:29]} 11. c3 {[%clk 0:02:57]}  Bc5 {[%clk 0:02:26]} 12. Bg5 {[%clk 0:02:54]}  c6 {[%clk 0:02:13]} 13. Nxf6+ {[%clk 0:02:45]}  gxf6 {[%clk 0:02:14]} 14. Bh6 {[%clk 0:02:45]}  Kh8 {[%clk 0:01:21]} 15. Bxf8 {[%clk 0:02:43]}  Qxf8 {[%clk 0:01:22]} 16. a4 {[%clk 0:02:39]}  Rb8 {[%clk 0:01:19]} 17. axb5 {[%clk 0:02:39]}  axb5 {[%clk 0:01:20]} 18. Qf3 {[%clk 0:02:38]}  Qg7 {[%clk 0:01:18]} 19. h3 {[%clk 0:02:31]}  Bd7 {[%clk 0:00:58]} 20. Ra6 {[%clk 0:02:26]}  Qg5 {[%clk 0:00:43]} 21. Rfa1 {[%clk 0:02:20]}  f5 {[%clk 0:00:39]} 22. exf5 {[%clk 0:02:12]}  Bxf5 {[%clk 0:00:38]} 23. Qxc6 {[%clk 0:01:22]}  Bxh3 {[%clk 0:00:17]} 24. Ra8 {[%clk 0:01:05]}  Rxa8 {[%clk 0:00:16]} 25. Qxa8+ {[%clk 0:00:31]}  Kg7 {[%clk 0:00:17]} 26. Qb7 {[%clk 0:00:30]}  Kh6 {[%clk 0:00:03]} 27. Qf3 {[%clk 0:00:29]}  Bg4 {[%clk 0:00:03]} 28. Qxf7 {[%clk 0:00:27]}  Bf5 {[%clk 0:00:02]} 29. Qf8+ {[%clk 0:00:04]}  Kh5 {[%clk 0:00:02]} 30. Bf7+ {[%clk 0:00:05]}  Kh4 {[%clk 0:00:01]} 31. Qg8 {[%clk 0:00:04]} 1-0


[Site "https://www.chess.com"]